bitfinex/quotes_BTCUSD_20241211
["timestamp","ask_amount","ask_price","bid_price","bid_amount"]
[1733932983593,0.000172,100580.0,100570.0,0.81109669]
[1733932984181,0.0160716,100580.0,100570.0,0.81109669]
[1733932984391,0.000172,100580.0,100570.0,0.81109669]
[1733932984589,0.08353374,100580.0,100570.0,0.94069669]
[1733932985384,0.08353374,100580.0,100570.0,0.94269669]
[1733932985823,0.08353374,100580.0,100570.0,0.94069669]
[1733932987261,0.08353374,100580.0,100570.0,0.94369669]
[1733932987465,0.08353374,100580.0,100570.0,0.94069669]
[1733932987903,0.000172,100580.0,100570.0,0.94269669]
[1733932988118,0.08353374,100580.0,100570.0,0.5069332]
[1733932988328,0.12348045,100580.0,100570.0,0.321036]
[1733932988543,0.12348045,100580.0,100570.0,0.4246332]
[1733932988978,0.37222645,100580.0,100570.0,0.001]
[1733932989184,0.03874648,100570.0,100560.0,0.338088]
[1733932989400,0.13905493,100570.0,100560.0,0.4416852]
[1733932989815,0.03874648,100560.0,100550.0,0.338124]
[1733932990030,0.03874648,100560.0,100550.0,0.4417212]
[1733932991279,0.03874648,100560.0,100550.0,0.5917212]
[1733932991698,0.04774648,100560.0,100550.0,0.5927212]
[1733932991908,0.05674648,100560.0,100550.0,0.5937212]
[1733932993748,0.07255274,100560.0,100550.0,0.5937212]
[1733932995603,0.20611471,100560.0,100550.0,0.002]
[1733932996146,0.20611471,100560.0,100550.0,0.1055972]
[1733932996782,0.19711471,100560.0,100550.0,0.1045972]
[1733932997022,0.19711471,100560.0,100550.0,0.2545972]
[1733932997191,0.20111471,100560.0,100550.0,0.2535972]
[1733932997389,0.19211471,100560.0,100550.0,0.2535972]
[1733932997595,0.46850071,100560.0,100550.0,0.151]
[1733932997796,0.12210822,100550.0,100540.0,0.00010973]
[1733932997951,0.66610845,100550.0,100540.0,0.15010973]
[1733932998155,0.66610845,100550.0,100540.0,0.00010973]
[1733932998360,0.66610845,100550.0,100540.0,0.27279293]
[1733932999076,0.66610845,100550.0,100540.0,0.10370693]
[1733932999311,0.12330845,100550.0,100540.0,0.15210973]
[1733932999562,0.32221445,100550.0,100540.0,0.15210973]
[1733932999763,0.12330845,100550.0,100540.0,0.15210973]
[1733933000021,0.12330845,100550.0,100540.0,0.25570693]
[1733933000022,0.32621445,100550.0,100540.0,0.25570693]
[1733933000225,0.32621445,100550.0,100540.0,0.15210973]
[1733933000428,0.32621445,100550.0,100540.0,0.00210973]
[1733933000641,0.40151445,100550.0,100540.0,0.00210973]
[1733933001606,0.023,100530.0,100520.0,0.01]
[1733933001826,0.37165345,100530.0,100520.0,0.01]
[1733933002260,0.45385345,100530.0,100520.0,0.01]
[1733933002865,0.60385345,100530.0,100520.0,0.01]
[1733933003519,0.60485345,100530.0,100520.0,0.015]
[1733933003721,0.60485345,100530.0,100520.0,0.005]
[1733933003927,0.25590845,100530.0,100520.0,0.1085972]
[1733933004137,0.12430845,100530.0,100520.0,0.2585972]
[1733933004563,0.12530845,100530.0,100520.0,0.2675972]
[1733933004834,0.12530845,100530.0,100520.0,0.4367172]
[1733933005048,0.14105493,100530.0,100520.0,0.6847289]
[1733933005255,0.16115482,100530.0,100520.0,0.4367172]
[1733933007387,0.02209989,100530.0,100520.0,0.6847289]
[1733933007600,0.10546163,100530.0,100520.0,0.7671289]
[1733933007801,0.02209989,100530.0,100520.0,0.7671289]
[1733933008233,0.02209989,100530.0,100520.0,0.767073]
[1733933008445,0.02009989,100530.0,100520.0,0.7531289]
[1733933008657,0.02009989,100530.0,100520.0,0.7541289]
[1733933008867,0.12210822,100540.0,100530.0,0.15]
[1733933009079,0.12210822,100540.0,100530.0,0.4227002]
[1733933009080,0.1417304,100540.0,100530.0,0.4227002]
[1733933010543,0.1417304,100540.0,100530.0,0.4277002]
[1733933010749,0.1427304,100540.0,100530.0,0.4367002]
[1733933010966,0.10398392,100540.0,100530.0,0.4367002]
[1733933011373,0.1427304,100540.0,100530.0,0.4367002]
[1733933011777,0.10398392,100540.0,100530.0,0.4367002]
[1733933012604,1.8e-07,100540.0,100530.0,5.96542035]
[1733933012823,1.8e-07,100540.0,100530.0,1.15679557]
[1733933013029,0.01967119,100560.0,100550.0,0.3839972]
[1733933013233,0.03874648,100570.0,100560.0,0.319053]
[1733933013435,0.03874648,100570.0,100560.0,0.4226502]
[1733933013645,0.08336174,100570.0,100560.0,0.8397149]
[1733933013854,0.08336174,100570.0,100560.0,0.9151149]
[1733933014476,0.000172,100580.0,100570.0,0.15]
[1733933014680,0.000172,100580.0,100570.0,0.25459129]
[1733933014681,0.10388899,100580.0,100570.0,0.25459129]
[1733933014884,0.10388899,100580.0,100570.0,0.5465332]
[1733933015087,0.000172,100580.0,100570.0,0.74684165]
[1733933016983,0.009172,100580.0,100570.0,0.74784165]
[1733933017706,0.009172,100580.0,100570.0,0.74884165]
[1733933018037,1e-06,100580.0,100570.0,0.86009517]
[1733933018251,1e-06,100580.0,100570.0,1.10810687]
[1733933018425,1e-06,100580.0,100570.0,1.12327104]
[1733933018650,1e-06,100580.0,100570.0,1.14331087]
[1733933019253,0.03914648,100610.0,100600.0,0.15]
[1733933019453,0.03931192,100610.0,100600.0,0.4225832]
[1733933019927,0.03881192,100610.0,100600.0,0.4225832]
[1733933022460,0.05886095,100610.0,100600.0,0.4275832]
[1733933022664,0.14352292,100610.0,100600.0,0.005]
[1733933023042,0.14352292,100610.0,100600.0,0.014]
[1733933023249,0.14352292,100610.0,100600.0,0.1175972]
[1733933023414,0.14352292,100610.0,100600.0,0.014]
[1733933023794,0.34230992,100610.0,100600.0,0.014]
[1733933024212,0.14352292,100610.0,100600.0,0.01226213]
[1733933024419,0.14352292,100610.0,100600.0,0.28484533]
[1733933024623,0.14352292,100610.0,100600.0,0.11585933]
[1733933024849,0.14352292,100610.0,100600.0,0.26585933]
[1733933025682,0.14352292,100610.0,100600.0,0.16226213]
[1733933025888,0.34230992,100610.0,100600.0,0.16226213]
[1733933026302,0.14352292,100610.0,100600.0,0.16226213]
[1733933026552,0.68522292,100610.0,100600.0,0.26585933]
[1733933027338,0.68522292,100610.0,100600.0,0.16226213]
[1733933027695,0.68522292,100610.0,100600.0,0.26585933]
[1733933028918,0.68522292,100610.0,100600.0,0.16226213]
[1733933029117,0.88175611,100610.0,100600.0,0.16226213]
[1733933029700,0.68296911,100610.0,100600.0,0.16226213]
[1733933030047,0.68296911,100610.0,100600.0,0.26585933]
[1733933030483,0.68296911,100610.0,100600.0,0.16226213]
[1733933031282,0.68296911,100610.0,100600.0,0.26585933]
[1733933031761,0.68296911,100610.0,100600.0,0.16226213]
[1733933031967,0.88175611,100610.0,100600.0,0.16226213]
[1733933033051,0.68296911,100610.0,100600.0,0.16226213]
[1733933033712,1.07845611,100610.0,100600.0,0.01226213]
[1733933033987,1.15895611,100610.0,100600.0,0.01226213]
[1733933035481,0.63054983,100610.0,100600.0,0.01226213]
[1733933037112,0.6201635,100610.0,100600.0,0.01226213]
[1733933037352,0.63350539,100610.0,100600.0,0.01226213]
[1733933037552,0.63351417,100610.0,100600.0,0.01226213]
[1733933037965,0.63351417,100610.0,100600.0,0.009]
[1733933038170,0.63351417,100610.0,100600.0,0.011]
[1733933038375,0.63351417,100610.0,100600.0,0.002]
[1733933038574,0.63351417,100610.0,100600.0,0.011]
[1733933038780,0.78351417,100610.0,100600.0,0.009]
[1733933038955,0.78351417,100610.0,100600.0,1e-08]
[1733933039364,0.7701635,100610.0,100600.0,1e-08]
[1733933039687,0.6201635,100610.0,100600.0,1e-08]
[1733933039908,0.4701635,100610.0,100600.0,1e-08]
[1733933040110,0.4213765,100610.0,100600.0,1e-08]
[1733933040320,0.63352646,100610.0,100600.0,1e-08]
[1733933040537,0.48352646,100610.0,100600.0,1e-08]
[1733933041150,0.63352646,100610.0,100600.0,1e-08]
[1733933041355,0.63352646,100610.0,100580.0,0.15]
[1733933041356,0.023,100590.0,100580.0,0.15]
[1733933041562,0.32213445,100590.0,100570.0,0.3329972]
[1733933041769,0.12330845,100580.0,100570.0,0.15]
[1733933041982,0.12330845,100580.0,100560.0,0.3523502]
[1733933042185,0.12330845,100580.0,100560.0,0.5213942]
[1733933042392,0.12330845,100580.0,100570.0,0.1035972]
[1733933042599,0.66260845,100580.0,100570.0,0.1035972]
[1733933042807,0.66260845,100580.0,100570.0,0.2726332]
[1733933043234,0.66260845,100580.0,100570.0,0.4226332]
[1733933043661,0.61053013,100580.0,100570.0,0.4686332]
[1733933043866,0.5393,100580.0,100570.0,0.5506332]
[1733933044074,0.61053013,100580.0,100570.0,0.5506332]
[1733933044482,0.5393,100580.0,100570.0,0.5506332]
[1733933044682,0.61053013,100580.0,100570.0,0.5506332]
[1733933044887,0.5393,100580.0,100570.0,0.5506332]
[1733933045309,0.5403,100580.0,100570.0,0.5596332]
[1733933045541,0.5393,100580.0,100570.0,0.5546332]
[1733933045747,0.61053013,100580.0,100570.0,0.5546332]
[1733933045970,0.61753013,100580.0,100570.0,0.5556332]
[1733933046176,0.61053013,100580.0,100570.0,0.5506332]
[1733933046378,0.63012821,100580.0,100570.0,0.5506332]
[1733933046583,0.63312821,100580.0,100570.0,0.5506332]
[1733933047531,0.09782821,100580.0,100570.0,0.5506332]
[1733933047738,0.09782821,100580.0,100570.0,0.319036]
[1733933047995,0.07123013,100560.0,100550.0,0.4036652]
[1733933048257,0.07123013,100560.0,100540.0,0.2726712]
[1733933048258,0.21018506,100560.0,100540.0,0.2726712]
[1733933048527,0.21018506,100560.0,100540.0,0.169074]
[1733933048528,0.03864648,100550.0,100540.0,0.169074]
[1733933048727,0.13895493,100550.0,100540.0,0.2726712]
[1733933049272,0.13895493,100550.0,100540.0,0.27283664]
[1733933049961,0.13995493,100550.0,100540.0,0.28183664]
[1733933050169,0.03964648,100550.0,100540.0,0.28183664]
[1733933050581,0.05930368,100550.0,100540.0,0.28183664]
[1733933050785,0.05930368,100550.0,100540.0,0.43183664]
[1733933050990,0.05930368,100550.0,100540.0,0.43683664]
[1733933052449,0.15961213,100550.0,100540.0,0.01416544]
[1733933052672,0.14396565,100550.0,100540.0,0.01416544]
[1733933053744,0.14396565,100550.0,100540.0,0.16416544]
[1733933054153,0.14396565,100550.0,100540.0,0.33325144]
[1733933054567,0.14396565,100550.0,100540.0,0.16416544]
[1733933054780,0.14396565,100550.0,100540.0,0.33325144]
[1733933055412,0.14396565,100550.0,100540.0,0.16416544]
[1733933055618,0.34287165,100550.0,100540.0,0.01416544]
[1733933055825,0.56827165,100550.0,100540.0,0.01412544]
[1733933056326,0.71827165,100550.0,100540.0,0.00211894]
[1733933056540,0.521925,100540.0,100530.0,0.03412729]
[1733933056752,0.47223345,100540.0,100530.0,0.03467898]
[1733933056962,0.62223345,100540.0,100530.0,0.03467898]
[1733933058241,0.47223345,100540.0,100530.0,0.03467898]
[1733933058451,0.47223345,100540.0,100530.0,0.03967898]
[1733933058926,0.62223345,100540.0,100530.0,0.03967898]
[1733933059419,0.62223345,100540.0,100530.0,0.01281317]
[1733933059626,0.47223345,100540.0,100530.0,0.01281317]
[1733933059831,0.62223345,100540.0,100530.0,0.01281317]
[1733933060269,0.62223345,100540.0,100530.0,0.01143071]
[1733933060476,0.12330845,100540.0,100530.0,0.01143071]
[1733933061320,0.32223345,100540.0,100530.0,0.01143071]
[1733933061533,0.47223345,100540.0,100530.0,0.01143071]
[1733933061740,0.47223345,100540.0,100510.0,0.15]
[1733933061741,0.67117445,100540.0,100510.0,0.15]
[1733933061944,0.12330845,100530.0,100510.0,0.319136]
[1733933062356,0.12330845,100530.0,100510.0,0.488273]
[1733933062616,0.12330845,100530.0,100510.0,0.5918702]
[1733933063081,0.12330845,100530.0,100510.0,0.493273]
[1733933063082,0.03864648,100520.0,100510.0,0.493273]
[1733933063284,0.03864648,100520.0,100510.0,0.488273]
[1733933063903,0.03864648,100520.0,100510.0,0.4227332]
[1733933064123,0.03864648,100520.0,100510.0,0.4247332]
[1733933064534,0.03864648,100520.0,100510.0,0.4227332]
[1733933064744,0.03864648,100520.0,100510.0,0.4257332]
[1733933064968,0.03864648,100520.0,100510.0,0.4267332]
[1733933065647,0.65990558,100530.0,100520.0,0.15]
[1733933066901,0.5393,100520.0,100510.0,0.15]
[1733933067122,0.86157345,100520.0,100500.0,0.021745]
[1733933067327,0.10030845,100510.0,100500.0,0.021745]
[1733933068423,0.12330845,100510.0,100500.0,0.021745]
[1733933068628,0.12330845,100510.0,100500.0,0.024745]
[1733933068629,0.12430845,100510.0,100500.0,0.024745]
[1733933068854,0.86159345,100510.0,100500.0,0.021745]
[1733933069099,0.32229345,100510.0,100500.0,0.021745]
[1733933069314,0.32229345,100510.0,100500.0,0.023745]
[1733933069315,0.32329345,100510.0,100500.0,0.023745]
[1733933069745,0.32329345,100510.0,100500.0,0.025745]
[1733933070161,0.32329345,100510.0,100500.0,0.023745]
[1733933070162,0.12430845,100510.0,100500.0,0.023745]
[1733933070427,0.10130845,100510.0,100500.0,0.4365452]
[1733933070628,0.10130845,100510.0,100500.0,0.4385452]
[1733933070839,0.10130845,100510.0,100500.0,0.2793422]
[1733933071462,0.10130845,100510.0,100500.0,0.4385452]
[1733933073019,0.12694268,100510.0,100500.0,0.4385452]
[1733933073225,0.12694268,100510.0,100500.0,0.175745]
[1733933073478,0.34892768,100510.0,100500.0,0.175745]
[1733933073687,0.36922532,100510.0,100500.0,0.025745]
[1733933074347,0.59542532,100510.0,100500.0,0.01378735]
[1733933074461,0.44542532,100510.0,100500.0,0.01378735]
[1733933074679,0.44542532,100510.0,100470.0,0.3852372]
[1733933074680,0.03864648,100480.0,100470.0,0.2259972]
[1733933074895,0.10030845,100480.0,100470.0,0.0765]
[1733933075093,0.10030845,100480.0,100470.0,0.0004]
[1733933075289,0.09105852,100480.0,100470.0,0.0004]
[1733933075966,0.10599378,100480.0,100470.0,0.00056532]
[1733933076164,0.11599378,100480.0,100470.0,0.00156532]
[1733933076369,0.11599378,100480.0,100470.0,0.15156532]
[1733933076577,0.11599378,100480.0,100470.0,0.15056532]
[1733933076785,0.10699378,100480.0,100470.0,0.15056532]
[1733933076984,0.10699378,100480.0,100470.0,0.32176932]
[1733933077193,0.10699378,100480.0,100470.0,0.15256532]
[1733933077601,0.10699378,100480.0,100470.0,0.15056532]
[1733933077832,0.10599378,100480.0,100470.0,0.15056532]
[1733933078241,0.10699378,100480.0,100470.0,0.15056532]
[1733933078507,0.10599378,100480.0,100470.0,0.15056532]
[1733933078715,0.08299378,100480.0,100470.0,0.42336652]
[1733933078932,0.08399378,100480.0,100470.0,0.42336652]
[1733933079135,0.08399378,100480.0,100470.0,0.42736652]
[1733933079365,0.02672105,100480.0,100470.0,0.47466652]
[1733933079578,0.001,100480.0,100470.0,0.79467822]
[1733933079797,0.57844648,100500.0,100470.0,1.01689067]
[1733933079798,0.07123013,100490.0,100470.0,1.01689067]
[1733933080022,0.07123013,100490.0,100480.0,0.71917692]
[1733933080249,0.07123013,100490.0,100480.0,0.7181819]
[1733933080462,0.07123013,100490.0,100480.0,0.6393492]
[1733933080705,0.67441858,100500.0,100490.0,0.319171]
[1733933080892,0.60318845,100500.0,100490.0,0.4227682]
[1733933082191,9.7e-07,100500.0,100490.0,0.89978835]
[1733933082427,0.07123013,100530.0,100520.0,0.31912]
[1733933082845,0.02547012,100530.0,100520.0,0.31912]
[1733933083055,0.10987661,100540.0,100520.0,0.48824]
[1733933083272,0.10987661,100540.0,100530.0,0.319103]
[1733933083508,0.03864648,100540.0,100530.0,0.319103]
[1733933083722,0.03864648,100540.0,100530.0,0.4227002]
[1733933083723,0.03919738,100540.0,100530.0,0.4227002]
[1733933085319,0.03919738,100540.0,100530.0,0.42262935]
[1733933085517,0.04319738,100540.0,100530.0,0.42262935]
[1733933085715,0.04719738,100540.0,100530.0,0.48575466]
[1733933086122,0.07176838,100540.0,100530.0,0.48575466]
[1733933087730,0.10435203,100540.0,100530.0,0.48575466]
[1733933087950,0.10435203,100540.0,100530.0,0.56105466]
[1733933095560,0.07978103,100540.0,100530.0,0.60975466]
[1733933098520,0.04719738,100540.0,100530.0,0.169103]
[1733933098721,0.04719738,100540.0,100530.0,0.33575466]
[1733933099004,0.0085509,100540.0,100530.0,0.33575466]
[1733933099140,0.54309681,100550.0,100540.0,0.15914]
[1733933099363,0.64340526,100550.0,100540.0,0.32595698]
[1733933099769,0.64340526,100550.0,100540.0,0.47595698]
[1733933100195,0.66640526,100550.0,100540.0,0.47595698]
[1733933100401,0.62775878,100550.0,100540.0,0.15016532]
[1733933100601,0.62775878,100550.0,100540.0,0.31681698]
[1733933100863,0.62775878,100550.0,100540.0,0.47595698]
[1733933101044,0.56609681,100550.0,100540.0,0.47595698]
[1733933101627,0.06264648,100550.0,100540.0,0.48195698]
[1733933101829,0.03964648,100550.0,100540.0,0.48595698]
[1733933102033,0.03964648,100550.0,100540.0,0.56665698]
[1733933102241,0.06445146,100550.0,100540.0,0.56665698]
[1733933104711,0.06445146,100550.0,100540.0,0.48595698]
[1733933104913,0.14911343,100550.0,100540.0,0.48595698]
[1733933105067,0.14911343,100550.0,100540.0,0.32681698]
[1733933105265,0.14911343,100550.0,100540.0,0.48593531]
[1733933105471,0.06445146,100550.0,100540.0,0.48593531]
[1733933105795,0.02580498,100550.0,100540.0,0.48593531]
[1733933106172,0.09703511,100550.0,100540.0,0.48593531]
[1733933106564,0.09703511,100550.0,100540.0,0.56843531]
[1733933107054,0.09703511,100550.0,100540.0,0.5052903]
[1733933108261,0.02580498,100550.0,100540.0,0.5052903]
[1733933108682,0.02580498,100550.0,100540.0,0.60559875]
[1733933109095,0.001,100550.0,100540.0,0.85334179]
[1733933109295,0.0678766,100570.0,100560.0,0.391208]
[1733933109524,0.0678766,100570.0,100560.0,0.74243602]
[1733933110610,0.0759,100590.0,100570.0,0.468173]
[1733933110611,0.50445033,100590.0,100570.0,0.468173]
[1733933110822,0.60475878,100590.0,100580.0,0.26256198]
[1733933111076,0.63034772,100590.0,100580.0,0.26256198]
[1733933111280,0.63034772,100590.0,100580.0,0.10348498]
[1733933111490,0.65056061,100590.0,100580.0,0.10348498]
[1733933111898,0.67356061,100590.0,100580.0,0.26256198]
[1733933112119,0.67372495,100590.0,100580.0,0.26256198]
[1733933112745,0.02575328,100590.0,100580.0,0.41256198]
[1733933112948,0.02575328,100590.0,100580.0,0.41856198]
[1733933113363,0.02575328,100590.0,100580.0,0.50066198]
[1733933116904,0.12606173,100590.0,100580.0,0.158]
[1733933117122,0.14906173,100590.0,100580.0,0.008]
[1733933117418,0.22686173,100590.0,100580.0,0.008]
[1733933117606,0.93013806,100590.0,100580.0,0.008]
[1733933119238,0.73131206,100590.0,100580.0,0.008]
[1733933119452,0.65351206,100590.0,100580.0,0.27056198]
[1733933119656,0.09362988,100590.0,100580.0,0.27056198]
[1733933119859,0.02575328,100590.0,100580.0,0.42056198]
[1733933120037,0.09362988,100590.0,100580.0,0.42056198]
[1733933120829,0.02575328,100590.0,100580.0,0.42056198]
[1733933121034,0.09362988,100590.0,100580.0,0.42056198]
[1733933121634,0.14906173,100590.0,100580.0,0.158]
[1733933121839,0.14906173,100590.0,100580.0,0.008]
[1733933122046,0.14906173,100590.0,100580.0,0.11148498]
[1733933122254,0.14906173,100590.0,100580.0,0.27056198]
[1733933122677,0.65351206,100590.0,100580.0,0.27056198]
[1733933123531,0.65351206,100590.0,100580.0,0.008]
[1733933123960,0.65351206,100590.0,100580.0,0.158]
[1733933124380,0.65351206,100590.0,100580.0,0.26148498]
[1733933126408,0.65351206,100590.0,100580.0,0.42056198]
[1733933126619,0.63051206,100590.0,100580.0,0.42056198]
[1733933127382,0.63051206,100590.0,100580.0,0.317077]
[1733933127587,0.65351206,100590.0,100580.0,0.42056198]
[1733933128734,0.14906173,100590.0,100580.0,0.42056198]
[1733933129000,0.02575328,100590.0,100580.0,0.42056198]
[1733933129277,0.02575328,100590.0,100580.0,0.49566198]
[1733933130175,0.09362988,100590.0,100580.0,0.49566198]
[1733933130388,0.09362988,100590.0,100580.0,0.54326198]
[1733933132042,0.09362988,100590.0,100580.0,0.54631865]
[1733933134918,0.02575328,100590.0,100580.0,0.54631865]
[1733933135275,0.02575328,100590.0,100580.0,0.67845534]
[1733933135686,0.02575328,100590.0,100580.0,0.85463759]
[1733933135850,0.02575328,100590.0,100580.0,1.17517385]
[1733933136072,0.02575328,100590.0,100580.0,1.04288142]
[1733933136286,0.02575328,100590.0,100580.0,1.03488142]
[1733933136501,0.04075328,100590.0,100580.0,1.03688142]
[1733933136708,0.01516434,100590.0,100580.0,0.96076839]
[1733933136911,0.00616434,100590.0,100580.0,0.85976839]
[1733933137584,0.00616434,100590.0,100580.0,0.95976839]
[1733933138201,0.01116434,100590.0,100580.0,0.95976839]
[1733933138404,0.00516434,100590.0,100580.0,0.95876839]
[1733933138549,0.00616434,100590.0,100580.0,0.95976839]
[1733933138756,0.01116434,100590.0,100580.0,0.96076839]
[1733933138959,0.01116434,100590.0,100580.0,1.13682197]
[1733933139186,0.0688618,100610.0,100580.0,1.13682197]
[1733933139187,0.01102613,100610.0,100580.0,1.13682197]
[1733933139388,0.01200793,100610.0,100600.0,0.41252398]
[1733933139751,0.03648612,100610.0,100600.0,0.25652536]
[1733933139958,0.40219545,100610.0,100600.0,0.00304038]
[1733933140157,0.01102613,100590.0,100580.0,0.33882532]
[1733933140594,0.397637,100600.0,100580.0,0.31931734]
[1733933140802,0.49794445,100600.0,100580.0,0.26272532]
[1733933140980,0.69676645,100600.0,100580.0,0.26272532]
[1733933141181,0.49794445,100600.0,100580.0,0.26272532]
[1733933141380,0.29912645,100600.0,100580.0,0.42179432]
[1733933141625,0.12330845,100600.0,100590.0,0.25348498]
[1733933141875,0.12330845,100600.0,100590.0,0.41254598]
[1733933142044,0.12430845,100600.0,100590.0,0.41254598]
[1733933142247,0.32311545,100600.0,100590.0,0.25348498]
[1733933142453,0.53008181,100610.0,100590.0,0.41254598]
[1733933142655,0.63039026,100610.0,100600.0,0.41252998]
[1733933143332,0.63039026,100610.0,100600.0,0.41595362]
[1733933143752,0.14893993,100610.0,100600.0,0.41595362]
[1733933144170,0.14893993,100610.0,100600.0,0.42495362]
[1733933144373,0.15393993,100610.0,100600.0,0.42495362]
[1733933144993,0.04863148,100610.0,100600.0,0.42495362]
[1733933145194,0.05965761,100610.0,100600.0,0.42495362]
[1733933145401,0.05965761,100610.0,100600.0,0.42995362]
[1733933145402,0.04863148,100610.0,100600.0,0.42995362]
[1733933145827,0.05965761,100610.0,100600.0,0.27090862]
[1733933146036,0.93547726,100610.0,100600.0,0.01742364]
[1733933146243,0.98097726,100610.0,100600.0,0.01742364]
[1733933152482,0.98097726,100610.0,100600.0,0.01889243]
[1733933152893,0.78219026,100610.0,100600.0,0.01889243]
[1733933153136,0.65339026,100610.0,100600.0,0.01889243]
[1733933153571,0.85217726,100610.0,100600.0,0.01889243]
[1733933155088,0.85217726,100610.0,100600.0,0.0174247]
[1733933155316,0.65339026,100610.0,100600.0,0.12090968]
[1733933155743,0.65339026,100610.0,100600.0,0.20923631]
[1733933156409,0.65339026,100610.0,100600.0,0.12090968]
[1733933156659,0.02563148,100610.0,100600.0,1.08610259]
[1733933156870,0.03665761,100610.0,100600.0,1.13558212]
[1733933157082,0.01102613,100610.0,100600.0,1.09545549]
[1733933157489,0.01102613,100610.0,100600.0,1.09562121]
[1733933157949,0.01102613,100610.0,100600.0,1.18397665]
[1733933165022,0.01102613,100610.0,100600.0,1.09562121]
[1733933165437,0.01102613,100610.0,100600.0,1.09567765]
[1733933166021,0.56516626,100620.0,100610.0,0.15]
[1733933166225,0.68847471,100620.0,100610.0,0.51083253]
[1733933166439,0.68847471,100620.0,100610.0,0.51425616]
[1733933167086,0.68847471,100620.0,100610.0,0.51725616]
[1733933167498,0.68947471,100620.0,100610.0,0.52625616]
[1733933167731,0.68947471,100620.0,100610.0,0.25380218]
[1733933167943,0.68947471,100620.0,100610.0,0.42277118]
[1733933168365,0.68947471,100620.0,100610.0,0.33439263]
[1733933168674,0.68947471,100620.0,100610.0,0.42277118]
[1733933168888,0.68947471,100620.0,100610.0,0.25380218]
[1733933169085,0.68947471,100620.0,100610.0,0.16542363]
[1733933169529,0.68947471,100620.0,100610.0,0.01542363]
[1733933169530,0.77017471,100620.0,100610.0,0.01542363]
[1733933169750,0.023,100610.0,100600.0,0.08845552]
[1733933169956,0.32209545,100610.0,100590.0,0.36823349]
[1733933170170,0.10030845,100600.0,100590.0,0.36823349]
[1733933170383,0.12330845,100610.0,100590.0,0.64072047]
[1733933170622,0.12330845,100610.0,100590.0,0.80971447]
[1733933170828,0.12330845,100610.0,100590.0,1.19984829]
[1733933171069,0.01102613,100600.0,100590.0,0.70912782]
[1733933171325,0.01102613,100600.0,100590.0,0.87685558]
[1733933171531,0.031,100610.0,100600.0,0.318986]
[1733933171532,0.04202613,100610.0,100600.0,0.318986]
[1733933171740,0.031,100610.0,100600.0,0.82048457]
[1733933171985,0.023,100610.0,100600.0,0.82548457]
[1733933172801,0.03402613,100610.0,100600.0,0.82548457]
[1733933173017,0.56516626,100620.0,100610.0,0.318969]
[1733933173227,0.56516626,100620.0,100610.0,0.58902195]
[1733933173639,0.56516626,100620.0,100610.0,0.59444448]
[1733933173851,0.02586626,100620.0,100610.0,0.59444448]
[1733933174279,0.04886626,100620.0,100610.0,0.59444448]
[1733933174496,0.04986626,100620.0,100610.0,0.59444448]
[1733933174762,0.04986626,100620.0,100610.0,0.77133941]
[1733933175203,0.02686626,100620.0,100610.0,0.99545807]
[1733933175411,0.02686626,100620.0,100610.0,0.9541901]
[1733933175630,0.02686626,100620.0,100610.0,0.77729517]
[1733933176261,0.02686626,100620.0,100610.0,0.87760362]
[1733933176479,0.0004,100630.0,100620.0,0.77442802]
[1733933176686,0.0004,100630.0,100620.0,1.43566131]
[1733933176945,0.0004,100630.0,100620.0,1.03791827]
[1733933177157,0.0004,100630.0,100620.0,1.04151534]
[1733933177364,0.0004,100630.0,100620.0,0.94120689]
[1733933177574,0.0004,100630.0,100620.0,0.94092817]
[1733933177784,0.00945512,100630.0,100620.0,0.94192817]
[1733933177995,0.00045512,100630.0,100620.0,0.94092817]
[1733933178268,0.00045512,100630.0,100620.0,0.81437774]
[1733933178483,0.00945512,100630.0,100620.0,0.81537774]
[1733933178700,0.00045512,100630.0,100620.0,0.94708087]
[1733933178913,0.00045512,100630.0,100620.0,0.81437774]
[1733933179149,0.02745745,100650.0,100620.0,0.81437774]
[1733933179371,0.023,100640.0,100630.0,0.82012356]
[1733933179819,0.023,100640.0,100630.0,1.041075]
[1733933180233,0.023,100640.0,100630.0,0.82012356]
[1733933180446,0.02296,100640.0,100630.0,0.82012356]
[1733933180873,0.02296,100640.0,100630.0,0.82553412]
[1733933181297,0.02896,100640.0,100630.0,0.82553412]
[1733933181507,0.02896,100640.0,100630.0,0.64877297]
[1733933181722,0.02896,100640.0,100630.0,0.47984697]
[1733933181939,0.12926845,100640.0,100630.0,0.00541056]
[1733933182177,0.37889645,100640.0,100630.0,0.00541056]
[1733933183022,0.17416845,100640.0,100620.0,0.168951]
[1733933183248,0.12330845,100630.0,100620.0,0.168951]
[1733933183483,0.023,100630.0,100620.0,0.51181034]
[1733933183692,0.023,100630.0,100620.0,0.64338741]
[1733933184137,0.023,100630.0,100620.0,0.82014856]
[1733933184355,0.12331543,100640.0,100620.0,0.64883265]
[1733933184576,0.001,100630.0,100620.0,0.80770882]
[1733933184805,0.001,100630.0,100620.0,0.94027969]
[1733933185021,0.001,100630.0,100620.0,0.80770883]
[1733933185254,0.001,100630.0,100620.0,0.96369381]
[1733933186134,0.02300698,100640.0,100620.0,0.95469381]
[1733933186352,0.53985111,100650.0,100640.0,0.168918]
[1733933186560,0.53985111,100650.0,100640.0,0.64319198]
[1733933186791,0.53985111,100650.0,100640.0,0.64787492]
[1733933187015,0.53985111,100650.0,100640.0,0.15468294]
[1733933187016,0.64015956,100650.0,100640.0,0.15468294]
[1733933187233,0.66225799,100650.0,100640.0,0.15468294]
[1733933187712,0.68925799,100650.0,100640.0,0.15468294]
[1733933187920,0.68525799,100650.0,100640.0,0.15468294]
[1733933188337,0.68525799,100650.0,100640.0,0.42708592]
[1733933188760,0.14595799,100650.0,100640.0,0.42708592]
[1733933188967,0.14595799,100650.0,100640.0,0.42908592]
[1733933189170,0.14595799,100650.0,100640.0,0.15668294]
[1733933189380,0.14595799,100650.0,100640.0,0.15468294]
[1733933189592,0.14595799,100650.0,100640.0,0.00468294]
[1733933189796,0.14595799,100650.0,100640.0,0.01368294]
[1733933190000,0.14595799,100650.0,100640.0,0.00868294]
[1733933190434,0.14595799,100650.0,100640.0,0.01768294]
[1733933190655,0.34466599,100650.0,100640.0,0.00868294]
[1733933190867,0.14595799,100650.0,100640.0,0.00868294]
[1733933191082,0.14595799,100650.0,100640.0,0.00968294]
[1733933191296,0.14595799,100650.0,100640.0,0.01168294]
[1733933191518,0.39266599,100650.0,100640.0,0.01168294]
[1733933191740,0.39266599,100650.0,100640.0,0.01029284]
[1733933191959,0.39266599,100650.0,100640.0,0.00829284]
[1733933192167,0.39266599,100650.0,100640.0,0.01329284]
[1733933192837,0.39266599,100650.0,100640.0,0.00829284]
[1733933193262,0.19395799,100650.0,100640.0,0.00829284]
[1733933193469,0.19395799,100650.0,100640.0,0.00329284]
[1733933193674,0.39366599,100650.0,100640.0,0.01229284]
[1733933193902,0.39366599,100650.0,100640.0,0.009]